bitfinex/quotes_SOLUSD_20250204
["timestamp","ask_amount","ask_price","bid_price","bid_amount"]
[1738650210135,1.75728822,205.56,205.52,43.912893]
[1738650210441,0.75728822,205.56,205.54,43.912893]
[1738650211314,0.063,205.57,205.55,13.41184853]
[1738650211522,0.063,205.57,205.56,43.912893]
[1738650211734,1.063,205.57,205.56,43.912893]
[1738650212328,1.063,205.57,205.56,48.777593]
[1738650212525,1.82028822,205.57,205.56,43.912893]
[1738650212740,0.063,205.57,205.56,48.777593]
[1738650213242,0.063,205.57,205.56,4.8647]
[1738650213466,0.063,205.57,205.56,62.44042153]
[1738650214617,0.063,205.57,205.56,45.74323239]
[1738650214818,0.063,205.57,205.56,46.47266855]
[1738650216644,0.063,205.57,205.56,45.74323239]
[1738650217240,0.063,205.57,205.56,4.8647]
[1738650218939,0.75728822,205.56,205.54,27.21570386]
[1738650219245,0.75728822,205.53,205.52,27.21570386]
[1738650219434,1.75728822,205.53,205.51,4.8659]
[1738650219941,1.75728822,205.55,205.52,27.21570386]
[1738650220137,1.82028822,205.57,205.54,27.21570386]
[1738650220339,1.82028822,205.57,205.56,27.21570386]
[1738650220646,1.0,205.52,205.5,0.03]
[1738650220948,1.75728822,205.52,205.5,0.03]
[1738650223550,1.0,205.52,205.5,27.24570386]
[1738650223850,1.75728822,205.52,205.5,27.24570386]
[1738650224024,1.0,205.51,205.5,27.24570386]
[1738650224748,1.0,205.51,205.5,0.03]
[1738650226425,1.0,205.51,205.5,27.24570386]
[1738650226954,1.0,205.51,205.5,0.03]
[1738650229433,1.0,205.51,205.5,27.24570386]
[1738650231146,1.0,205.51,205.5,32.11180386]
[1738650231343,0.75728822,205.52,205.5,32.11180386]
[1738650231653,1.0,205.51,205.5,32.11180386]
[1738650232252,1.0,205.51,205.5,4.8961]
[1738650233062,1.0,205.51,205.5,32.11180386]
[1738650233972,1.0,205.53,205.5,45.52365239]
[1738650234271,1.0,205.55,205.52,27.21570386]
[1738650234556,1.0,205.55,205.54,27.21570386]
[1738650235163,0.063,205.56,205.54,27.21570386]
[1738650235336,0.063,205.56,205.55,4.8649]
[1738650235960,0.063,205.56,205.55,18.27674853]
[1738650238059,1.063,205.56,205.55,18.27674853]
[1738650238449,1.063,205.56,205.54,27.21570386]
[1738650239344,0.75728822,205.55,205.54,27.21570386]
[1738650239543,1.0,205.53,205.52,27.21570386]
[1738650240457,0.75728822,205.55,205.52,27.21570386]
[1738650240458,1.0,205.55,205.52,27.21570386]
[1738650240646,1.0,205.55,205.54,27.21570386]
[1738650240854,1.75728822,205.55,205.54,27.21570386]
[1738650241761,1.75728822,205.51,205.5,0.03]
[1738650242749,2.48437261,205.51,205.5,0.03]
[1738650243054,1.75728822,205.51,205.5,0.03]
[1738650243584,6.62318822,205.51,205.5,0.03]
[1738650244070,6.62318822,205.51,205.4,0.03]
[1738650244071,1.75728822,205.41,205.4,0.03]
[1738650244668,1.0,205.45,205.41,0.12549]
[1738650244875,1.0,205.45,205.44,27.21570386]
[1738650245972,1.75728822,205.41,205.4,0.03]
[1738650247466,48.97299208,205.41,205.4,0.03]
[1738650247878,53.84129208,205.41,205.4,0.03]
[1738650248069,54.56837647,205.41,205.4,0.03]
[1738650248406,53.84129208,205.41,205.4,0.03]
[1738650248598,53.84129208,205.41,205.4,0.0001]
[1738650248892,1.75728822,205.36,205.35,0.03]
[1738650249067,28.97299208,205.32,205.31,0.03]
[1738650249994,1.75728822,205.32,205.31,0.03]
[1738650250186,1.0,205.32,205.31,27.24570386]
[1738650250792,1.75728822,205.32,205.31,27.24570386]
[1738650251378,1.75728822,205.32,205.31,0.03]
[1738650252089,2.60986261,205.32,205.31,0.03]
[1738650252393,1.75728822,205.32,205.31,0.03]
[1738650260974,8.07468822,205.32,205.31,0.03]
[1738650261390,21.48653675,205.32,205.31,0.03]
[1738650261704,76.18869594,205.3,205.29,0.03]
[1738650261904,76.91578033,205.3,205.29,0.03]
[1738650262705,90.32762886,205.3,205.29,0.03]
[1738650262901,63.111925,205.3,205.29,0.03]
[1738650263294,1.75728822,205.18,205.17,27.21570386]
[1738650263480,1.75728822,205.18,205.15,32.08990386]
[1738650263682,1.75728822,205.18,205.1,33.54490386]
[1738650263683,1.75728822,205.12,205.09,27.21570386]
[1738650264003,1.0,205.1,205.09,27.21570386]
[1738650264199,1.75728822,205.12,205.09,26.71570386]
[1738650264384,1.0,205.1,205.09,26.71570386]
[1738650264586,1.0,205.1,205.09,40.12755239]
[1738650264906,1.0,205.1,205.05,0.12549]
[1738650265204,1.0,205.07,205.05,4.8766]
[1738650265405,1.0,205.05,205.02,27.21570386]
[1738650265995,1.0,205.03,205.0,27.21570386]
[1738650266195,0.75728822,205.02,205.0,27.21570386]
[1738650266396,1.0,204.99,204.98,32.09420386]
[1738650266601,1.0,204.99,204.98,27.21570386]
[1738650266801,1.0,204.97,204.96,27.21570386]
[1738650266995,4.8769,205.05,204.9,83.73954555]
[1738650266996,1.0,204.93,204.9,32.09590386]
[1738650267197,1.0,204.91,204.9,32.09590386]
[1738650267501,1.0,204.89,204.88,4.8808]
[1738650267696,1.0,204.89,204.86,74.62711596]
[1738650268009,1.75728822,204.87,204.86,74.62711596]
[1738650268179,1.0,204.87,204.86,74.62711596]
[1738650268502,1.75728822,204.87,204.84,27.21570386]
[1738650268806,1.0,204.87,204.86,27.21570386]
[1738650269105,1.0,204.91,204.87,4.8811]
[1738650269279,1.0,204.95,204.9,40.62755239]
[1738650269485,4.8772,205.04,204.9,40.62755239]
[1738650269486,1.0,204.97,204.94,27.21570386]
[1738650269811,1.0,204.98,204.93,20.0]
[1738650270211,1.0,204.99,204.93,20.0]
[1738650270505,1.0,205.01,204.95,20.0]
[1738650270697,1.0,205.03,204.97,20.0]
[1738650271006,1.0,205.07,205.03,4.8773]
[1738650271197,1.0,205.07,205.05,27.21570386]
[1738650271508,1.0,205.09,205.05,27.21570386]
[1738650271707,1.0,205.11,205.07,27.21570386]
[1738650271900,1.0,205.13,205.09,27.21570386]
[1738650272108,1.0,205.12,205.11,27.21570386]
[1738650272691,1.0,205.12,205.04,13.53733853]
[1738650272692,1.0,205.09,205.04,27.21570386]
[1738650272892,0.75728822,205.08,205.04,32.09260386]
[1738650273086,1.0,205.15,205.09,13.41184853]
[1738650273309,1.0,205.14,205.13,27.21570386]
[1738650273493,1.0,205.11,205.07,27.21570386]
[1738650273695,1.0,205.08,205.05,33.31680386]
[1738650273897,1.0,205.08,205.05,27.21570386]
[1738650274100,0.75728822,205.09,205.05,27.21570386]
[1738650274101,1.0,205.06,205.05,27.21570386]
[1738650274606,1.75728822,205.12,205.05,40.62755239]
[1738650274825,27.21570386,205.2,205.1,27.21570386]
[1738650275024,32.08900386,205.2,205.1,27.21570386]
[1738650275233,27.21570386,205.16,205.08,32.09160386]
[1738650275390,27.21570386,205.18,205.1,27.21570386]
[1738650276010,27.21570386,205.16,205.08,27.21570386]
[1738650276216,27.21570386,205.18,205.1,27.21570386]
[1738650276528,27.21570386,205.2,205.12,27.21570386]
[1738650276988,32.08900386,205.2,205.12,27.21570386]
[1738650277190,27.21570386,205.13,205.04,27.21570386]
[1738650277404,0.12549,205.16,205.0,27.21570386]
[1738650277405,27.21570386,205.09,205.0,27.21570386]
[1738650277813,27.21570386,205.11,205.02,27.21570386]
[1738650278005,27.21570386,205.11,205.04,27.21570386]
[1738650278205,51.41095075,205.3,204.98,13.41184853]
[1738650278206,27.21570386,205.17,205.08,27.21570386]
[1738650278511,27.21570386,205.19,205.1,27.21570386]
[1738650278694,27.21570386,205.17,205.1,27.21570386]
[1738650278889,4.8742,205.16,205.08,27.21570386]
[1738650279504,27.21570386,205.19,205.1,27.21570386]
[1738650279692,27.21570386,205.21,205.12,27.21570386]
[1738650279885,27.21570386,205.21,205.14,27.21570386]
[1738650280597,44.40920468,205.25,205.17,44.40920468]
[1738650280797,44.40920468,205.27,205.17,44.40920468]
[1738650281133,44.40920468,205.27,205.19,49.28260468]
[1738650281310,49.28090468,205.27,205.19,44.40920468]
[1738650282315,44.40920468,205.23,205.15,44.40920468]
[1738650282535,44.40920468,205.21,205.13,44.40920468]
[1738650283190,44.40920468,205.23,205.15,44.40920468]
[1738650283390,44.40920468,205.27,205.19,44.40920468]
[1738650283600,49.28050468,205.29,205.21,44.40920468]
[1738650284505,44.40920468,205.27,205.19,44.40920468]
[1738650284925,49.28080468,205.27,205.19,44.40920468]
[1738650285498,44.40920468,205.25,205.17,44.40920468]
[1738650287330,0.72708439,205.27,205.19,44.40920468]
[1738650287331,44.40920468,205.27,205.19,44.40920468]
[1738650288025,44.40920468,205.34,205.25,44.40920468]
[1738650288208,44.40920468,205.32,205.23,44.40920468]
[1738650288820,44.40920468,205.32,205.25,44.40920468]
[1738650289027,44.40920468,205.34,205.25,44.40920468]
[1738650289215,44.40920468,205.34,205.27,44.40920468]
[1738650289729,49.27910468,205.34,205.25,49.28120468]
[1738650291030,44.40920468,205.34,205.25,49.28120468]
[1738650291624,0.063,205.35,205.27,44.40920468]
[1738650293152,0.063,205.35,205.27,49.28060468]
[1738650294227,0.063,205.35,205.29,44.40920468]
[1738650294437,0.063,205.35,205.31,44.40920468]
[1738650295010,0.063,205.35,205.27,4.8714]
[1738650295011,0.063,205.35,205.29,44.40920468]
[1738650296141,0.063,205.35,205.29,49.28010468]
[1738650296529,0.063,205.35,205.29,44.40920468]
[1738650296729,44.40920468,205.33,205.27,4.8714]
[1738650297040,44.40920468,205.33,205.25,49.28100468]
[1738650297411,44.40920468,205.33,205.25,4.8718]
[1738650297839,44.40920468,205.31,205.21,44.40920468]
[1738650298040,44.40920468,205.27,205.19,44.43920468]
[1738650299034,44.40920468,205.29,205.21,49.28200468]
[1738650299450,44.40920468,205.33,205.25,44.40920468]
[1738650299734,49.34190468,205.35,205.25,44.40920468]
[1738650299916,44.40920468,205.31,205.23,44.40920468]
[1738650300120,44.40920468,205.31,205.21,49.28200468]
[1738650300309,44.40920468,205.29,205.21,49.28200468]
[1738650300514,44.40920468,205.29,205.21,44.40920468]
[1738650300714,27.32650785,205.24,205.19,0.03]
[1738650301313,32.19880785,205.24,205.19,0.03]
[1738650302057,27.32650785,205.2,205.19,0.03]
[1738650302557,28.05359224,205.2,205.19,0.03]
[1738650302857,0.12549,205.16,205.05,27.32650785]
[1738650303060,27.32650785,205.09,205.01,27.32650785]
[1738650303232,27.32650785,205.09,205.0,6.2909]
[1738650303560,32.20240785,205.09,205.0,6.2909]
[1738650303757,32.20240785,205.09,204.97,32.20500785]
[1738650303758,27.32650785,205.07,204.97,32.20500785]
[1738650303962,27.32650785,205.07,204.97,27.32650785]
[1738650304113,27.32650785,205.05,204.97,27.32650785]
[1738650304317,27.32650785,205.11,205.03,27.32650785]
[1738650304545,28.85210785,205.13,205.03,27.32650785]
[1738650305021,27.32650785,205.11,205.03,27.32650785]
[1738650305545,34.45429224,205.13,205.03,27.32650785]
[1738650305853,34.45429224,205.13,205.01,27.32650785]
[1738650305854,27.32650785,205.09,205.01,27.32650785]
[1738650306055,27.32650785,205.09,204.99,32.20470785]
[1738650306259,27.32650785,205.05,204.97,27.32650785]
[1738650308219,27.32650785,205.05,204.97,27.35650785]
[1738650308422,27.32650785,205.01,204.97,0.03]
[1738650309242,27.32650785,205.03,204.97,0.03]
[1738650310435,27.32650785,205.01,204.97,0.03]
[1738650311344,27.32650785,204.99,204.97,0.03]
[1738650311649,4.8785,204.98,204.97,0.03]
[1738650311862,27.32650785,205.01,204.97,0.03]
[1738650312023,28.05359224,205.03,204.97,0.03]
[1738650312227,27.32650785,205.01,204.97,0.03]
[1738650312624,27.32650785,204.99,204.97,0.03]
[1738650314034,32.20440785,205.01,204.97,0.03]
[1738650314420,0.85257439,205.05,204.97,0.03]
[1738650314421,27.32650785,205.03,204.97,0.03]
[1738650314642,32.20290785,205.07,204.99,27.32650785]
[1738650314826,27.32650785,205.03,204.97,0.03]
[1738650315033,27.32650785,204.99,204.97,0.03]
[1738650315727,27.32650785,205.01,204.97,0.03]
[1738650317027,27.32650785,204.99,204.97,0.03]
[1738650318053,32.20480785,204.99,204.97,0.03]
[1738650319034,32.20450785,205.01,204.97,0.03]
[1738650319530,4.8768,205.06,204.99,27.32650785]
[1738650319835,27.32650785,205.07,204.99,27.32650785]
[1738650320036,32.20340785,205.05,204.97,27.35650785]
[1738650321072,27.32650785,205.01,204.97,0.03]
[1738650321252,0.12549,204.98,204.97,0.03]
[1738650321550,0.85257439,204.98,204.97,0.03]
[1738650322276,5.73107439,204.98,204.97,0.03]
[1738650322427,20.0,204.95,204.93,0.03]
[1738650322751,27.32650785,204.94,204.93,0.03]
[1738650323651,32.20590785,204.94,204.93,0.03]
[1738650324177,20.0,204.95,204.93,0.03]
[1738650324477,27.32650785,204.98,204.93,0.03]
[1738650324644,27.32650785,205.0,204.93,27.35650785]
[1738650326351,4.8778,205.01,204.93,32.23610785]
[1738650326554,28.05359224,205.0,204.93,0.03]
[1738650326758,27.32650785,204.98,204.93,0.03]
[1738650327534,27.32650785,205.0,204.93,27.35650785]
[1738650327747,27.32650785,205.0,204.93,32.23610785]
[1738650328058,4.8778,205.01,204.93,32.23610785]
[1738650328573,4.8778,205.01,204.93,27.35650785]
[1738650329446,4.8778,205.01,204.93,32.23610785]
[1738650330046,27.32650785,204.96,204.93,0.03]
[1738650330350,0.72708439,205.0,204.93,0.03]
[1738650330351,47.32650785,204.94,204.93,0.03]
[1738650331231,20.0,204.94,204.93,0.03]
[1738650331435,27.32650785,204.96,204.93,0.03]
[1738650331849,4.8792,204.95,204.93,0.03]
[1738650332151,27.32650785,204.94,204.93,0.03]
[1738650332360,28.05359224,204.94,204.93,0.03]
[1738650332758,28.17908224,204.94,204.93,0.03]
[1738650334045,28.05359224,204.94,204.93,0.03]
[1738650334358,32.20590785,204.94,204.93,0.03]
[1738650336058,32.93299224,204.94,204.93,0.03]
[1738650336834,46.34484077,204.94,204.93,0.03]
[1738650337139,20.0,204.91,204.79,1.6255]
[1738650337481,1.0,204.93,204.79,1.6255]
[1738650337482,27.32650785,204.87,204.79,6.5085]
[1738650338162,27.32650785,204.87,204.79,1.6255]
[1738650338461,27.32650785,204.85,204.79,1.6255]
[1738650338666,27.32650785,204.85,204.76,4.8836]
[1738650339077,27.32650785,204.81,204.75,6.5783]
[1738650339443,27.32650785,204.85,204.77,27.32650785]
[1738650340134,27.32650785,204.83,204.75,11.4622]
[1738650340367,27.32650785,204.83,204.75,38.78870785]
[1738650340789,27.32650785,204.85,204.77,27.32650785]
[1738650341554,27.32650785,204.8,204.72,27.32650785]
[1738650341759,27.32650785,204.74,204.67,4.8858]
[1738650341963,27.32650785,204.76,204.67,32.21230785]
[1738650342170,27.32650785,204.74,204.67,27.32650785]
[1738650342369,27.32650785,204.74,204.65,27.32650785]
[1738650343351,27.32650785,204.74,204.66,4.8861]
[1738650343557,27.32650785,204.76,204.67,40.73835638]
[1738650344160,27.32650785,204.76,204.67,27.32650785]
[1738650344359,27.32650785,204.74,204.66,4.8861]
[1738650344752,27.32650785,204.76,204.67,27.32650785]
[1738650344954,27.32650785,204.76,204.6,42.69334311]
[1738650344955,27.32650785,204.69,204.6,4.8875]
[1738650345251,27.32650785,204.65,204.57,33.74220785]
[1738650345454,27.32650785,204.65,204.57,6.4157]
[1738650345657,27.32650785,204.67,204.57,33.74220785]
[1738650345857,27.32650785,204.69,204.59,27.32650785]
[1738650346054,27.32650785,204.75,204.65,27.32650785]
[1738650346291,27.32650785,204.77,204.69,27.32650785]
[1738650346464,27.32650785,204.77,204.67,27.32650785]
[1738650346795,27.32650785,204.77,204.67,32.21230785]
[1738650347161,27.32650785,204.77,204.69,27.32650785]
[1738650347508,32.21000785,204.77,204.67,27.32650785]
[1738650347773,27.32650785,204.77,204.68,13.41184853]
[1738650347961,27.32650785,204.77,204.69,27.32650785]
[1738650348688,32.20950785,204.79,204.7,13.41184853]
[1738650348889,27.32650785,204.79,204.71,27.32650785]
[1738650349184,27.32650785,204.81,204.71,27.32650785]
[1738650349882,27.32650785,204.79,204.71,27.32650785]
[1738650351264,27.32650785,204.81,204.71,32.21130785]
[1738650351583,18.79833087,204.85,204.73,27.32650785]
[1738650351584,27.32650785,204.83,204.73,27.32650785]
[1738650351785,32.20860785,204.83,204.73,27.32650785]
[1738650352186,27.32650785,204.83,204.75,27.32650785]
[1738650353103,27.32650785,204.83,204.76,4.8837]
[1738650353901,27.32650785,204.87,204.79,27.32650785]
[1738650354097,27.32650785,204.89,204.81,27.32650785]
[1738650354301,27.32650785,204.91,204.82,13.41184853]
[1738650354468,27.32650785,204.91,204.83,27.32650785]
[1738650354668,27.32650785,204.91,204.79,1.5316]
[1738650354669,27.32650785,204.87,204.79,1.5316]
[1738650354875,27.32650785,204.85,204.79,1.5316]
[1738650355064,27.32650785,204.87,204.78,32.44650785]
[1738650355266,27.32650785,204.85,204.78,10.0032]
[1738650355499,27.32650785,204.91,204.82,27.32650785]
[1738650356675,27.32650785,204.89,204.82,27.32650785]
[1738650356875,27.32650785,204.95,204.87,13.41184853]
[1738650357069,27.32650785,204.97,204.88,28.05841889]
[1738650357505,32.20530785,204.97,204.88,32.20730785]
[1738650358203,0.063,204.91,204.88,32.20730785]
[1738650358389,0.063,204.91,204.88,27.32650785]
[1738650358707,0.063,204.91,204.85,1.5026]
[1738650358708,0.063,204.91,204.86,32.20770785]
[1738650360170,27.32650785,204.89,204.81,27.32650785]
[1738650360599,27.32650785,204.87,204.79,28.89560785]
[1738650360898,0.063,204.91,204.82,13.41184853]
[1738650360899,27.32650785,204.89,204.82,13.41184853]
[1738650361895,0.063,204.91,204.87,4.8811]
[1738650362208,27.38950785,204.91,204.81,32.20900785]
[1738650362375,27.38950785,204.91,204.82,13.41184853]
[1738650362571,27.38950785,204.91,204.83,27.32650785]
[1738650363203,0.063,204.91,204.86,13.41184853]
[1738650363510,0.063,204.91,204.85,27.32650785]
[1738650363511,0.063,204.91,204.89,27.32650785]
[1738650363666,0.063,204.91,204.9,13.41184853]
[1738650363997,0.063,204.91,204.9,18.29224853]
[1738650365195,0.063,204.91,204.89,4.8805]
[1738650365494,0.063,204.91,204.88,6.262]
[1738650365708,27.32650785,204.89,204.84,6.1868]
[1738650365904,27.32650785,204.87,204.84,6.1868]
[1738650366397,27.32650785,204.87,204.83,4.882]
[1738650366398,27.32650785,204.89,204.8,27.32650785]
[1738650366598,27.32650785,204.89,204.82,27.32650785]
[1738650366777,27.32650785,204.89,204.8,27.32650785]
[1738650368098,27.32650785,204.89,204.8,32.20910785]
[1738650368602,27.32650785,204.87,204.8,27.32650785]
[1738650369373,4.8807,204.89,204.76,32.21000785]
[1738650369374,27.32650785,204.83,204.76,32.21000785]
[1738650369578,27.32650785,204.85,204.78,27.32650785]
[1738650369898,27.32650785,204.87,204.78,27.32650785]
[1738650370078,27.32650785,204.87,204.76,13.41184853]
[1738650370079,27.32650785,204.87,204.8,27.32650785]
[1738650370482,27.32650785,204.87,204.8,13.41184853]
[1738650370677,32.20720785,204.89,204.8,40.73835638]
[1738650370880,27.38950785,204.91,204.84,27.32650785]
[1738650371078,0.063,204.91,204.84,27.32650785]
[1738650371612,27.38950785,204.91,204.84,27.32650785]
[1738650372096,32.26970785,204.91,204.82,27.32650785]
[1738650372304,27.32650785,204.89,204.81,6.4609]
[1738650372596,4.9432,204.91,204.81,6.4609]
[1738650372597,0.063,204.91,204.88,27.32650785]
[1738650373699,0.063,204.91,204.86,27.32650785]
[1738650373998,32.26970785,204.91,204.82,27.32650785]
[1738650374389,32.26970785,204.91,204.82,32.20870785]
[1738650375375,27.32650785,204.89,204.8,33.73180785]
[1738650376276,32.20730785,204.89,204.8,33.73180785]
[1738650376472,27.32650785,204.87,204.8,32.20910785]
[1738650376791,27.32650785,204.81,204.75,6.4626]
[1738650377099,27.32650785,204.81,204.75,1.5788]
[1738650377304,0.72708439,204.88,204.76,27.32650785]
[1738650377305,27.32650785,204.83,204.76,27.32650785]
[1738650377518,27.32650785,204.85,204.76,27.32650785]
[1738650377704,27.32650785,204.83,204.75,4.8839]
[1738650378399,32.20870785,204.83,204.74,32.21060785]
[1738650378580,27.32650785,204.83,204.74,32.21060785]
[1738650378792,32.20870785,204.83,204.74,32.21060785]
[1738650379220,32.20870785,204.83,204.74,27.32650785]
[1738650379400,27.32650785,204.83,204.74,32.21070785]
[1738650379602,4.8818,204.85,204.77,13.41184853]
[1738650379816,33.84260785,204.89,204.8,27.32650785]
[1738650380024,4.8809,204.88,204.8,27.32650785]
[1738650380207,33.84260785,204.89,204.8,32.20920785]
[1738650380408,32.26970785,204.91,204.82,27.32650785]
[1738650380712,0.063,204.91,204.8,46.35319635]
[1738650380905,0.063,204.91,204.86,27.32650785]
[1738650381108,27.38950785,204.91,204.84,27.32650785]
[1738650381421,32.26970785,204.91,204.82,27.32650785]
[1738650382419,27.38950785,204.91,204.84,27.32650785]
[1738650383001,0.063,204.91,204.86,27.32650785]
[1738650383408,0.063,204.91,204.88,27.32650785]
[1738650384305,0.063,204.91,204.9,40.73835638]
[1738650384501,0.063,204.91,204.9,45.61875638]
[1738650385007,0.063,204.91,204.9,73.19624423]
[1738650385412,0.0001,204.91,204.9,73.19624423]
[1738650385729,0.0001,204.91,204.9,74.41880198]
[1738650386101,0.063,204.98,204.92,0.12549]
[1738650386301,0.063,204.98,204.97,27.32650785]
[1738650387221,0.063,204.98,204.97,41.72090678]
[1738650388527,0.063,204.98,204.97,41.46992678]
[1738650391524,0.063,205.12,205.02,0.25098]
[1738650391725,0.063,205.12,205.07,27.32650785]
[1738650392032,27.38950785,205.12,205.04,27.32650785]
[1738650392245,27.38950785,205.12,205.05,27.32650785]
[1738650392835,27.32650785,205.08,205.0,27.32650785]
[1738650393047,27.32650785,205.1,205.02,27.32650785]
[1738650393235,27.38950785,205.12,205.04,27.32650785]
[1738650393435,0.063,205.12,205.06,32.20300785]
[1738650393742,27.32650785,205.09,205.02,18.28934853]
[1738650393944,27.32650785,205.09,205.02,40.73835638]
[1738650394152,27.32650785,205.07,205.0,32.20430785]
[1738650394365,27.32650785,205.07,204.98,32.20490785]
[1738650394528,27.32650785,205.05,204.98,32.20490785]
[1738650394914,27.32650785,205.06,204.98,27.32650785]
[1738650395115,27.32650785,205.05,204.97,32.20510785]
[1738650395334,27.32650785,205.04,204.96,27.32650785]
[1738650395660,27.32650785,205.03,204.95,27.32650785]
[1738650395817,27.32650785,205.02,204.94,27.32650785]
[1738650396151,27.32650785,205.01,204.94,27.32650785]
[1738650396319,27.32650785,205.01,204.95,13.41184853]
[1738650396740,27.32650785,205.02,204.95,13.41184853]
[1738650397054,32.20380785,205.03,204.96,27.32650785]
[1738650397552,32.20380785,205.03,204.95,13.41184853]
[1738650397553,27.32650785,205.03,204.95,27.32650785]
[1738650397756,27.32650785,205.05,204.97,27.32650785]
[1738650399222,32.20340785,205.05,204.97,27.32650785]
[1738650399822,27.32650785,205.03,204.96,13.41184853]
[1738650400017,4.8769,205.05,204.93,27.32650785]
[1738650400018,27.32650785,205.01,204.93,27.32650785]
[1738650400229,27.32650785,204.99,204.91,27.32650785]
[1738650400434,27.32650785,204.99,204.91,32.20660785]
[1738650400764,32.20340785,205.05,204.96,13.41184853]
[1738650400924,27.32650785,205.05,204.97,27.32650785]
[1738650401126,27.32650785,205.05,204.97,32.20500785]
[1738650401820,27.32650785,205.07,204.99,27.32650785]
[1738650402323,27.32650785,205.01,204.89,27.32650785]
[1738650402523,27.32650785,204.95,204.85,32.20800785]
[1738650402746,27.32650785,204.93,204.85,32.20800785]
[1738650403056,27.32650785,204.93,204.83,6.5465]
[1738650403057,27.32650785,204.95,204.88,13.41184853]
[1738650403262,32.20570785,204.95,204.87,32.20740785]
[1738650403927,27.32650785,204.93,204.86,13.41184853]
[1738650404267,27.32650785,204.93,204.85,27.32650785]
[1738650404425,27.32650785,204.91,204.83,27.32650785]
[1738650404634,27.32650785,204.89,204.81,27.32650785]
[1738650404828,27.32650785,204.89,204.78,6.81989044]
[1738650404829,27.32650785,204.91,204.83,27.32650785]
[1738650405031,27.32650785,204.89,204.81,27.32650785]
[1738650405667,27.32650785,204.87,204.79,27.32650785]
[1738650405876,27.32650785,204.85,204.78,13.41184853]
[1738650406041,27.32650785,204.85,204.77,27.32650785]
[1738650406667,17.0806,204.91,204.81,27.35650785]
[1738650406668,27.32650785,204.89,204.81,27.35650785]
[1738650406977,27.32650785,204.91,204.83,27.32650785]
[1738650407767,27.32650785,204.89,204.81,32.23880785]
[1738650408073,27.32650785,204.87,204.81,0.03]
[1738650408374,27.32650785,204.89,204.81,32.23890785]
[1738650408670,27.32650785,204.86,204.81,0.03]
[1738650408889,27.32650785,204.83,204.81,0.03]
[1738650409260,27.32650785,204.87,204.81,0.03]
[1738650410947,27.32650785,204.83,204.81,0.03]
[1738650412990,27.32650785,204.86,204.81,0.03]
[1738650413352,27.32650785,204.84,204.81,0.03]
[1738650414273,27.32650785,204.82,204.81,0.03]
[1738650415372,28.05359224,204.82,204.81,0.03]
[1738650415751,27.32650785,204.82,204.81,0.03]
[1738650417282,27.32650785,204.84,204.81,0.03]
[1738650417772,27.32650785,204.88,204.81,0.03]
[1738650417970,27.32650785,204.86,204.81,0.03]
[1738650418171,27.32650785,204.84,204.81,0.03]
[1738650418667,27.32650785,204.88,204.81,0.03]
[1738650419677,27.32650785,204.9,204.82,40.73835638]
[1738650419890,27.32650785,204.92,204.84,27.32650785]
[1738650420577,27.32650785,204.88,204.81,4.9125]
[1738650421294,27.32650785,204.9,204.82,27.32650785]
[1738650421693,27.32650785,204.92,204.83,4.882]
[1738650422192,27.32650785,204.9,204.83,4.882]
[1738650422693,27.32650785,204.88,204.83,4.882]
[1738650422894,27.32650785,204.88,204.81,0.03]
[1738650422895,27.32650785,204.88,204.81,4.9123]
[1738650423095,27.32650785,204.88,204.81,0.03]
[1738650423296,27.32650785,204.86,204.81,0.03]
[1738650424064,27.32650785,204.84,204.81,0.03]
[1738650424692,27.32650785,204.82,204.81,0.03]
[1738650424865,32.20880785,204.82,204.81,0.03]
[1738650425186,27.32650785,204.82,204.81,0.03]
[1738650426703,27.32650785,204.84,204.81,0.03]
[1738650426894,27.32650785,204.82,204.81,0.03]
[1738650429220,28.05359224,204.82,204.81,0.03]
[1738650429805,57.38010009,204.82,204.81,0.0001]
[1738650430132,20.0,204.78,204.76,0.03]
[1738650430427,20.0,204.74,204.61,6.0844]
[1738650430596,27.32650785,204.67,204.61,6.0844]
[1738650430792,27.32650785,204.67,204.59,32.21420785]
[1738650431392,27.32650785,204.67,204.6,0.03]
[1738650431894,2.72931276,204.73,204.6,0.03]
[1738650431895,27.32650785,204.65,204.6,0.03]
[1738650432525,27.32650785,204.63,204.6,0.03]
[1738650433319,27.32650785,204.61,204.6,0.03]